bitfinex/quotes_ETHUSD_20250411
["timestamp","ask_amount","ask_price","bid_price","bid_amount"]
[1744375467819,6.40042,1562.4,1562.1,7.96563]
[1744375468018,12.80097,1562.4,1562.1,8.762193]
[1744375468218,12.80097,1562.4,1562.1,7.96563]
[1744375468639,6.40042,1562.4,1562.1,7.96563]
[1744375468803,6.40042,1562.4,1562.1,14.36716]
[1744375469002,6.40042,1562.4,1562.1,7.96563]
[1744375469555,12.80102,1562.4,1562.1,7.96563]
[1744375469730,6.40099,1562.3,1562.1,1.5642]
[1744375470040,6.40186,1562.1,1561.8,7.97284]
[1744375470220,6.40216,1562.0,1561.7,14.37642]
[1744375470643,6.40216,1562.0,1561.7,14.37643]
[1744375470871,12.80385,1562.1,1561.8,6.40286]
[1744375471363,6.40186,1562.1,1561.8,12.80572]
[1744375471729,6.40124,1562.2,1561.9,6.40241]
[1744375472037,2.213302,1562.2,1561.9,12.80482]
[1744375472345,15.73178,1562.3,1562.0,14.31664]
[1744375472660,15.73178,1562.3,1562.0,1.5128]
[1744375472661,6.40124,1562.2,1562.0,1.5128]
[1744375472868,15.73172,1562.3,1562.0,1.5128]
[1744375473171,15.73172,1562.3,1562.0,7.91476]
[1744375473467,22.13275,1562.3,1562.0,1.5128]
[1744375473648,15.73172,1562.3,1562.0,1.5128]
[1744375474059,6.40082,1562.3,1562.0,9.346558]
[1744375474261,0.0976,1562.4,1562.2,6.40086]
[1744375474593,0.0976,1562.4,1562.3,1.5171]
[1744375475564,0.0976,1562.4,1562.3,8.46791]
[1744375475741,0.0976,1562.4,1562.3,10.65889289]
[1744375475941,0.0976,1562.4,1562.3,10.594889]
[1744375476251,0.0976,1562.4,1562.3,10.65888726]
[1744375476452,0.0976,1562.4,1562.3,10.594889]
[1744375477530,0.0976,1562.4,1562.2,6.40086]
[1744375477732,0.0976,1562.4,1562.3,6.95081]
[1744375478065,1e-05,1562.4,1562.3,8.52191]
[1744375478232,1e-05,1562.4,1562.3,8.58589425]
[1744375478450,1e-05,1562.4,1562.3,8.52191]
[1744375478647,1e-05,1562.4,1562.3,11.8668521]
[1744375479479,1e-05,1562.4,1562.3,15.35664095]
[1744375479783,1e-05,1562.4,1562.3,14.8668521]
[1744375479946,1e-05,1562.4,1562.3,11.8668521]
[1744375480283,1e-05,1562.4,1562.3,8.52191]
[1744375480480,1e-05,1562.4,1562.2,6.40086]
[1744375480683,1e-05,1562.4,1562.3,6.40081]
[1744375481245,1e-05,1562.4,1562.3,8.57240946]
[1744375481442,1e-05,1562.4,1562.3,8.50841]
[1744375481643,1e-05,1562.4,1562.3,10.06333441]
[1744375481869,1e-05,1562.4,1562.3,9.999337]
[1744375483782,1e-05,1562.4,1562.3,10.06333117]
[1744375484186,1e-05,1562.4,1562.3,9.999337]
[1744375492272,1e-05,1562.4,1562.3,8.441737]
[1744375492772,1e-05,1562.4,1562.3,7.891737]
[1744375493393,1e-05,1562.4,1562.3,8.441737]
[1744375495302,6.40095,1562.3,1561.9,6.40228]
[1744375495590,1.59381,1562.4,1562.1,6.40143]
[1744375495981,1.59381,1562.4,1562.1,12.80295]
[1744375496157,7.99426,1562.4,1562.1,6.40143]
[1744375496360,1.59381,1562.4,1562.1,12.80294]
[1744375496691,1.59381,1562.4,1562.2,6.4012]
[1744375496893,1.59381,1562.4,1562.1,6.40143]
[1744375497193,1.59381,1562.4,1562.2,6.40114]
[1744375497399,1.59381,1562.4,1562.2,12.80228]
[1744375497691,1.59381,1562.4,1562.2,6.40114]
[1744375497886,1.59381,1562.4,1562.2,12.80225]
[1744375498093,1.59381,1562.4,1562.2,6.40111]
[1744375498295,1.59381,1562.4,1562.2,12.80223]
[1744375498605,1e-05,1562.4,1562.3,6.40081]
[1744375499693,1e-05,1562.4,1562.3,6.95081]
[1744375499894,1e-05,1562.4,1562.3,8.47411]
[1744375500469,1e-05,1562.4,1562.3,11.53810544]
[1744375500669,1e-05,1562.4,1562.3,11.47411]
[1744375500874,1e-05,1562.4,1562.3,14.39366662]
[1744375501311,1e-05,1562.4,1562.3,14.86208066]
[1744375502885,1e-05,1562.4,1562.3,14.31208066]
[1744375503207,1e-05,1562.4,1562.3,11.39366662]
[1744375503911,1e-05,1562.4,1562.3,11.45766123]
[1744375504114,7.99073,1562.4,1562.0,6.40192]
[1744375504414,6.40124,1562.2,1561.9,12.80467]
[1744375504710,6.40092,1562.3,1562.0,6.40192]
[1744375504906,12.80191,1562.3,1561.9,12.8047]
[1744375505089,6.40125,1562.2,1561.9,6.40235]
[1744375505403,1.5285,1562.1,1561.9,6.40235]
[1744375505565,1.5285,1562.1,1561.9,6.40234]
[1744375506266,1.5285,1562.1,1562.0,6.40204]
[1744375506870,1.5162,1562.3,1561.9,0.06401767]
[1744375507208,7.91704,1562.3,1562.0,6.40204]
[1744375507403,1.5162,1562.3,1562.1,6.4015]
[1744375508709,7.91732,1562.3,1561.9,6.4021]
[1744375508875,6.40184,1562.1,1561.8,6.40274]
[1744375509205,1.5458,1562.0,1561.8,6.40274]
[1744375509402,7.94797,1562.0,1561.7,6.40315]
[1744375509622,1.5458,1562.0,1561.8,12.80559]
[1744375512605,1.5458,1562.0,1561.8,6.40274]
[1744375512808,7.94786,1562.0,1561.7,6.40319]
[1744375513010,1.5458,1562.0,1561.7,6.40315]
[1744375513325,7.94793,1562.0,1561.7,6.40315]
[1744375513482,7.94793,1562.0,1561.7,6.40314]
[1744375513686,7.94793,1562.0,1561.7,12.80631]
[1744375514009,14.35013,1562.0,1561.7,6.40314]
[1744375514508,7.94793,1562.0,1561.7,12.80629]
[1744375515009,1.5458,1562.0,1561.8,6.40286]
[1744375516008,10.16429,1562.0,1561.7,6.40314]
[1744375516178,1.6568,1561.9,1561.5,6.40405]
[1744375516375,1.6568,1561.9,1561.3,1.6504]
[1744375516580,1.6568,1561.7,1561.4,12.80878]
[1744375517010,1.6568,1561.7,1561.6,6.40368]
[1744375517482,1.6568,1561.9,1561.7,6.40303]
[1744375518075,1.6568,1561.9,1561.6,6.40345]
[1744375518276,1.6568,1561.9,1561.7,6.40306]
[1744375518508,1.6568,1561.9,1561.7,12.80619]
[1744375519628,7.813,1562.1,1561.8,6.40286]
[1744375519908,9.4411,1562.1,1561.9,6.40224]
[1744375520432,1.6281,1562.1,1561.8,12.80559]
[1744375520579,1.6281,1562.1,1562.0,6.40204]
[1744375520979,1.6281,1562.1,1561.9,12.80469]
[1744375521179,1.6281,1562.1,1561.8,12.80559]
[1744375521620,1.6281,1562.1,1561.9,6.40234]
[1744375521815,1.6281,1562.1,1561.9,12.80469]
[1744375522424,6.40092,1562.3,1561.9,2.858769]
[1744375522425,1.5133,1562.3,1561.9,2.858769]
[1744375522589,9.33821,1562.4,1562.2,6.40111]
[1744375522791,1.54221,1562.4,1562.2,6.4011]
[1744375523007,1e-05,1562.4,1562.3,8.52341611]
[1744375523206,1e-05,1562.4,1562.3,11.45941]
[1744375524817,1e-05,1562.4,1562.3,11.52340336]
[1744375525021,6.21366253,1563.1,1563.0,6.39795]
[1744375526512,6.39689,1563.3,1562.7,4.5922]
[1744375526716,6.39689,1563.3,1562.9,6.39819]
[1744375526947,0.639689,1563.2,1562.9,12.79642]
[1744375527242,7.036819,1563.2,1562.8,6.46267915]
[1744375527545,7.036819,1563.2,1562.8,12.79732]
[1744375527912,7.90291,1563.1,1562.7,6.39915]
[1744375528113,1.5052,1562.8,1562.5,6.39985]
[1744375528434,6.39921,1562.7,1562.3,1.5245]
[1744375528624,6.39921,1562.7,1562.3,6.40069]
[1744375528815,12.79857,1562.7,1562.3,6.40069]
[1744375529015,12.79857,1562.7,1562.3,6.40067]
[1744375529217,1.430377,1562.7,1562.4,6.40023]
[1744375529760,7.829777,1562.7,1562.3,6.40065]
[1744375529960,7.829777,1562.7,1562.2,6.46518206]
[1744375530262,14.31614,1562.6,1562.2,6.40118]
[1744375530560,7.91626,1562.6,1562.2,6.40118]
[1744375530861,15.71026,1562.6,1562.1,12.86712861]
[1744375531047,6.40056,1562.4,1562.0,6.40197]
[1744375531242,13.441306,1562.4,1562.0,6.40197]
[1744375531758,7.040616,1562.4,1562.0,12.80386]
[1744375532753,1.648,1562.3,1561.9,6.40235]
[1744375532956,8.049,1562.3,1561.9,12.80468]
[1744375533148,8.049,1562.3,1562.0,6.40203]
[1744375533337,9.493951,1562.3,1562.0,6.40203]
[1744375533732,6.40134,1562.2,1561.8,6.46678887]
[1744375533927,6.40166,1562.1,1561.7,6.40316]
[1744375534237,12.8035,1562.1,1561.7,12.80629]
[1744375534831,1.5803,1562.0,1561.4,1.280878]
[1744375535165,6.40423,1561.5,1561.1,6.40566]
[1744375535359,6.40423,1561.5,1561.1,6.40559]
[1744375535558,6.40423,1561.5,1561.1,12.8112]
[1744375535928,15.7781,1561.6,1561.1,0.55]
[1744375536134,9.3743,1561.6,1561.3,6.40472]
[1744375536362,1.5803,1561.6,1561.3,6.40472]
[1744375536549,7.93108,1561.8,1561.5,6.40392]
[1744375536758,1.5281,1561.8,1561.5,12.80789]
[1744375537261,1.5281,1561.8,1561.6,6.40351]
[1744375538266,1.5281,1561.8,1561.5,6.40401]
[1744375538434,1.5281,1561.8,1561.5,12.80797]
[1744375538634,1.5281,1561.8,1561.5,14.143767]
[1744375539070,1.5281,1561.8,1561.6,6.40348]
[1744375539257,1.5281,1561.8,1561.6,12.80711]
[1744375539639,1.5281,1561.8,1561.6,6.40348]
[1744375540137,6.40339,1561.7,1561.4,6.40434]
[1744375540467,6.40382,1561.6,1561.2,6.40523]
[1744375540668,1.5569,1561.4,1561.2,6.40523]
[1744375541230,1.5569,1561.4,1561.0,6.40608]
[1744375541430,7.96157,1561.4,1561.0,12.81216]
[1744375541644,1.5569,1561.4,1561.2,6.40507]
[1744375541849,1.5569,1561.4,1561.2,12.81019]
[1744375542267,1.5569,1561.4,1561.2,6.40507]
[1744375543173,1.5569,1561.4,1561.1,12.81126]
[1744375543342,1.5569,1561.4,1561.1,14.13954932]
[1744375544352,1.5569,1561.4,1561.2,6.40526]
[1744375547088,6.40506,1561.3,1561.0,6.40601]
[1744375547437,6.40532,1561.3,1560.9,6.40649]
[1744375547751,12.81064,1561.3,1560.9,12.81298]
[1744375547954,6.40532,1561.3,1560.8,2.1304]
[1744375548158,1.5569,1561.4,1561.2,12.81053]
[1744375548571,1.5569,1561.4,1561.3,6.40491]
[1744375548749,7.796,1561.5,1561.2,12.81044]
[1744375548949,7.796,1561.5,1561.2,6.40522]
[1744375549187,7.796,1561.5,1561.2,12.81042]
[1744375550287,14.20012,1561.5,1561.2,12.81042]
[1744375550585,14.20012,1561.5,1561.1,6.40561]
[1744375550882,6.40463,1561.4,1561.1,6.40561]
[1744375551085,6.40231,1562.0,1561.6,6.40339]
[1744375551285,6.4025,1561.9,1561.6,12.80697]
[1744375551986,12.80475,1562.0,1561.6,12.80694]
[1744375552190,14.239565,1562.0,1561.6,12.80694]
[1744375552370,7.837125,1562.0,1561.6,12.80694]
[1744375552575,12.80452,1562.0,1561.6,12.80694]
[1744375553072,6.40252,1561.9,1561.5,8.51368871]
[1744375553386,7.93601,1561.8,1561.5,6.40397]
[1744375553552,14.33909,1561.8,1561.4,12.80876]
[1744375553752,14.33909,1561.8,1561.4,14.244176]
[1744375554092,7.93601,1561.8,1561.5,6.40409]
[1744375555599,14.33908,1561.8,1561.5,6.40409]
[1744375555979,7.93601,1561.8,1561.5,6.40409]
[1744375556379,14.33904,1561.8,1561.5,6.40409]
[1744375556580,7.93601,1561.8,1561.5,7.8284796]
[1744375556797,14.33907,1561.8,1561.5,6.40409]
[1744375556994,6.4033,1561.7,1561.4,6.40438]
[1744375557984,6.4033,1561.7,1561.4,12.80877]
[1744375559260,6.4033,1561.7,1561.4,12.87280604]
[1744375559466,14.33927,1561.8,1561.5,1.2872806]
[1744375560184,14.33927,1561.8,1561.5,7.6913406]
[1744375560861,14.33913,1561.8,1561.5,7.6912706]
[1744375561416,6.40345,1561.7,1561.4,6.4044]
[1744375561623,1.5331,1561.8,1561.3,8.42964875]
[1744375561824,12.80693,1561.7,1561.4,6.4044]
[1744375561977,6.40346,1561.7,1561.4,12.80879]
[1744375562183,14.33914,1561.8,1561.5,6.40406]
[1744375562394,15.773054,1561.8,1561.5,6.40406]
[1744375562597,7.93609,1561.8,1561.5,6.40406]
[1744375562820,1.5608,1562.0,1561.6,0.06403765]
[1744375562992,7.96296,1562.0,1561.7,6.40316]
[1744375563309,14.36527,1562.0,1561.7,6.40316]
[1744375563505,6.4029,1561.8,1561.5,13.35791]
[1744375563719,12.80594,1561.8,1561.5,6.95394]
[1744375563892,6.4029,1561.8,1561.5,6.40394]
[1744375564101,6.4029,1561.8,1561.5,12.80792]
[1744375564622,6.4029,1561.8,1561.4,7.97906]
[1744375564821,8.06308,1561.7,1561.4,7.97906]
[1744375565022,8.06308,1561.7,1561.4,14.38342]
[1744375565226,1.6598,1561.7,1561.5,6.40408]
[1744375566016,1.6598,1561.7,1561.5,12.80805]
[1744375566223,7.9291,1561.8,1561.5,6.40397]
[1744375566512,14.33211,1561.8,1561.5,6.40397]
[1744375567015,6.40332,1561.7,1561.4,7.97907]
[1744375567203,6.40332,1561.7,1561.4,14.44748651]
[1744375567395,6.40332,1561.7,1561.4,16.36058468]
[1744375570511,6.40207,1562.0,1561.5,0.55]
[1744375570512,6.40251,1561.9,1561.5,0.55]
[1744375570711,6.40251,1561.9,1561.6,6.46751992]
[1744375571017,6.40251,1561.9,1561.6,12.87108992]
[1744375571209,12.80523,1561.9,1561.5,6.95397]
[1744375571414,12.80523,1561.9,1561.5,13.35794]
[1744375571719,6.40251,1561.9,1561.6,6.46767994]
[1744375572231,6.40251,1561.9,1561.6,12.87124994]
[1744375573120,6.40337,1561.7,1561.4,7.97899]
[1744375573321,7.94357,1561.7,1561.4,14.38338]
[1744375573487,7.94357,1561.7,1561.4,7.97899]
[1744375573992,7.94357,1561.7,1561.4,14.38337]
[1744375576326,1.5402,1561.7,1561.5,6.40398]
[1744375576519,6.40298,1561.8,1561.5,6.40398]
[1744375576831,12.80602,1561.8,1561.5,6.40398]
[1744375577594,6.40298,1561.8,1561.5,6.40398]
[1744375578140,1.444793,1561.8,1561.4,1.5747]
[1744375578338,6.40328,1561.7,1561.4,1.5747]
[1744375578502,6.40328,1561.7,1561.4,8.04298692]
[1744375578697,12.80598,1561.8,1561.4,8.04298692]
[1744375579206,12.80598,1561.8,1561.5,6.40407]
[1744375579614,8.045,1561.9,1561.5,0.55]
[1744375579815,1.6424,1561.9,1561.6,0.06403688]
[1744375580021,1.6424,1561.9,1561.6,12.80705]
[1744375580410,1.6424,1561.9,1561.6,12.87108002]
[1744375580610,1.6424,1561.9,1561.6,12.80705]
[1744375580842,1.6424,1561.9,1561.6,12.87108003]
[1744375581039,1.6424,1561.9,1561.7,6.40318]
[1744375581931,1.6424,1561.9,1561.6,12.80705]
[1744375582093,8.04486,1561.9,1561.6,6.40337]
[1744375582297,15.252016,1561.9,1561.6,6.40337]
[1744375582616,6.40294,1561.8,1561.4,7.97912]
[1744375582926,7.96819,1561.6,1561.3,6.88425875]
[1744375583109,7.96819,1561.6,1561.3,6.88424875]
[1744375583304,6.40379,1561.6,1561.3,6.88424875]
[1744375583516,14.37124,1561.7,1561.3,14.18900363]
[1744375583725,14.37124,1561.7,1561.3,13.28904875]
[1744375583923,7.96779,1561.7,1561.4,6.40449]
[1744375584236,7.96779,1561.7,1561.4,12.80877]
[1744375584438,7.96779,1561.7,1561.4,6.40438]
[1744375584632,14.37124,1561.7,1561.3,13.28900875]
[1744375584815,15.808364,1561.7,1561.3,13.28900875]
[1744375586129,9.404914,1561.7,1561.4,6.40437]
[1744375586304,8.03317,1561.9,1561.6,6.40368]
[1744375586704,1.6306,1561.9,1561.4,6.4044]
[1744375586929,6.40332,1561.7,1561.4,12.8088]
[1744375587125,6.40332,1561.7,1561.4,14.7188578]
[1744375590037,12.80652,1561.8,1561.5,6.40407]
[1744375590538,14.43597,1561.9,1561.6,6.40362]
[1744375590910,8.03317,1561.9,1561.6,12.80724]
[1744375591111,1.6306,1561.9,1561.7,6.4673007]
[1744375591427,4.76287379,1562.0,1561.8,6.40286]
[1744375591934,11.16492379,1562.0,1561.7,6.40327]
[1744375593648,6.40205,1562.0,1561.7,6.40315]
[1744375594230,12.80423,1562.0,1561.7,6.40315]
[1744375594942,6.40265,1561.9,1561.6,7.9972]
[1744375595110,6.40289,1561.8,1561.5,12.80804]
[1744375595839,14.3716,1561.9,1561.6,6.95366]
[1744375596838,7.96875,1561.9,1561.5,6.40402]
[1744375597037,12.80598,1561.8,1561.5,6.40397]
[1744375597241,6.40335,1561.7,1561.4,6.40438]
[1744375597746,6.40335,1561.7,1561.4,6.46841803]
[1744375598040,6.40335,1561.7,1561.4,12.87279803]
[1744375598243,6.40335,1561.7,1561.4,12.80876]
[1744375598446,6.40293,1561.8,1561.5,6.40405]
[1744375598659,12.80593,1561.8,1561.5,6.40405]
[1744375599359,12.80608,1561.8,1561.5,6.40405]
[1744375600126,6.40331,1561.7,1561.4,12.872798]
[1744375600362,12.80682,1561.7,1561.4,6.40438]
[1744375600767,6.40374,1561.6,1561.3,14.40421]
[1744375600966,8.04951,1561.7,1561.4,12.8089]
[1744375601260,1.6524,1561.8,1561.3,9.85846392]
[1744375601458,6.40463,1561.4,1561.1,14.32524]
[1744375602061,14.35005,1561.5,1561.2,6.40531]
[1744375603349,7.94577,1561.5,1561.2,6.40531]
[1744375604436,1.5416,1561.5,1561.2,6.40531]
[1744375604659,7.9522,1561.7,1561.4,6.40437]
[1744375604966,4.76287379,1561.7,1561.5,6.40408]
[1744375605162,4.76287379,1561.7,1561.5,12.80816]
[1744375605763,4.76287379,1561.7,1561.6,6.95368]
[1744375605959,4.76287379,1561.7,1561.6,9.806956]
[1744375606967,4.91487379,1561.9,1561.6,16.210636]
[1744375607166,4.91487379,1561.9,1561.7,6.40325]
[1744375607557,4.91487379,1561.9,1561.7,6.40315]
[1744375607759,11.31758379,1561.9,1561.6,3.403276]
[1744375607931,11.31758379,1561.9,1561.6,9.806846]
[1744375608136,4.91487379,1561.9,1561.6,16.210416]
[1744375608361,4.91487379,1561.9,1561.7,6.40326]
[1744375608868,4.91487379,1561.9,1561.7,12.80643]
[1744375609261,4.91487379,1561.9,1561.7,6.40317]
[1744375610069,4.91487379,1561.9,1561.6,16.210396]
[1744375610249,4.91487379,1561.9,1561.6,9.806836]
[1744375610450,4.91487379,1561.9,1561.6,16.210396]
[1744375610778,4.91487379,1561.9,1561.6,9.806836]
[1744375610779,0.152,1561.9,1561.6,9.806836]
[1744375611143,0.152,1561.9,1561.6,16.210396]
[1744375611337,0.152,1561.9,1561.7,8.0241296]
[1744375611941,6.55449,1561.9,1561.6,14.87463]
[1744375612176,0.152,1561.9,1561.7,6.40325]
[1744375612341,0.152,1561.9,1561.7,12.80641]
[1744375613391,0.152,1561.9,1561.8,8.45466]
[1744375613953,0.152,1561.9,1561.8,8.51867964]
[1744375614154,0.152,1561.9,1561.8,8.45466]
[1744375614354,0.152,1561.9,1561.8,9.940432]
[1744375615252,0.152,1561.9,1561.6,6.40366]
[1744375615253,1.6901,1561.9,1561.6,6.40366]
[1744375615480,8.09259,1561.9,1561.5,8.01527]
[1744375615695,6.40358,1561.7,1561.3,8.01602]
[1744375615851,1.6179,1561.6,1561.3,6.40472]
[1744375616052,1.6179,1561.8,1561.6,6.40368]
[1744375616284,1.7699,1561.9,1561.7,0.640368]
[1744375616451,8.17249,1561.9,1561.7,0.640368]
[1744375616651,14.57513,1561.9,1561.5,14.43756]
[1744375616889,14.57513,1561.9,1561.5,6.40398]
[1744375617196,1.7699,1561.9,1561.5,0.06403378]
[1744375617380,1.7699,1561.9,1561.6,0.55]
[1744375617546,0.152,1561.9,1561.7,6.4031]
[1744375617752,0.152,1561.9,1561.6,6.40356]
[1744375618289,0.152,1561.9,1561.8,6.40286]
[1744375619265,0.152,1561.9,1561.6,6.40362]
[1744375619451,7.895,1561.9,1561.6,12.80714]
[1744375619647,7.895,1561.9,1561.7,6.4032]
[1744375619949,7.895,1561.9,1561.7,12.8064]
[1744375620149,7.895,1561.9,1561.8,6.40286]
[1744375620393,7.895,1561.9,1561.8,7.95346]
[1744375620597,7.895,1561.9,1561.8,1.5506]
[1744375620751,7.895,1561.9,1561.7,6.40309]
[1744375620951,7.895,1561.9,1561.7,7.3419284]
[1744375621206,7.895,1561.9,1561.8,6.40286]
[1744375621712,0.152,1561.9,1561.8,6.95286]
[1744375621870,0.152,1561.9,1561.8,8.58286]
[1744375622507,0.152,1561.9,1561.8,6.95286]
[1744375622677,0.152,1561.9,1561.8,8.53481584]
[1744375623868,0.152,1561.9,1561.7,13.7450584]
[1744375624067,0.152,1561.9,1561.7,7.3418984]
[1744375624279,0.152,1561.9,1561.7,13.7450584]
[1744375624969,1.8099,1561.9,1561.7,6.40306]
[1744375625204,1.8099,1561.9,1561.6,6.40359]
[1744375625576,8.21258,1561.9,1561.5,6.40398]
[1744375625899,22.3583,1561.9,1561.5,6.40398]
[1744375626103,22.3583,1561.9,1561.5,12.80795]
[1744375626269,22.3583,1561.9,1561.4,1.5157]
[1744375626270,6.40295,1561.8,1561.4,1.5157]
[1744375626474,10.44832,1561.9,1561.3,4.11382288]
[1744375626668,1.8099,1561.9,1561.6,6.40364]
[1744375627008,0.152,1561.9,1561.8,6.95286]
[1744375627478,0.152,1561.9,1561.8,8.51826]
[1744375628301,0.152,1561.9,1561.8,8.58227372]
[1744375628507,0.152,1561.9,1561.8,11.51826]
[1744375628709,0.152,1561.9,1561.8,14.36273186]
[1744375630098,0.152,1561.9,1561.8,12.79733186]
[1744375630283,0.152,1561.9,1561.7,6.40306]
[1744375631508,0.152,1561.9,1561.8,6.40286]
[1744375632816,0.152,1561.9,1561.7,12.80618]
[1744375633023,1.5089,1561.7,1560.8,7.65927402]
[1744375633219,6.40738,1560.7,1560.6,9.0953879]
[1744375633424,6.40861,1560.4,1560.1,14.51100464]
[1744375633718,6.40861,1560.4,1560.3,1.78e-06]
[1744375633719,17.99787141,1560.4,1560.3,1.78e-06]
[1744375633918,15.48576236,1560.4,1560.3,1.78e-06]
[1744375634106,16.59123314,1560.4,1560.1,14.51100464]
[1744375634308,0.59633052,1560.3,1560.1,14.51100464]
[1744375634627,7.00535052,1560.3,1560.1,14.51100464]
[1744375634920,21.97918923,1560.3,1560.1,14.51100464]
[1744375635124,22.33637631,1560.3,1560.1,14.51100464]
[1744375635327,18.69984709,1560.3,1560.1,14.51100464]
[1744375635483,21.81844103,1560.3,1560.1,14.51100464]
[1744375635686,26.12583643,1560.3,1560.1,14.51100464]
[1744375636302,27.14223643,1560.3,1560.1,14.51100464]
[1744375636499,27.14223643,1560.3,1560.2,3.09e-06]
[1744375636700,6.40943,1560.2,1560.1,7.73e-06]
[1744375636932,9.76459664,1560.2,1560.0,0.700964]
[1744375637229,13.7172354,1560.1,1560.0,0.700964]
[1744375637428,14.7336354,1560.1,1560.0,0.700964]
[1744375638494,14.7336354,1560.1,1560.0,4e-06]
[1744375638695,18.55175049,1560.1,1560.0,4e-06]
[1744375638903,21.94051709,1560.1,1560.0,4e-06]
[1744375639327,6.41025,1560.0,1559.9,2.4e-06]
[1744375639497,9.41025,1560.0,1559.9,2.4e-06]
[1744375639904,6.41354,1559.2,1558.8,1.5156]
[1744375640106,6.41438,1559.0,1558.8,1.5156]
[1744375640327,14.14298,1559.1,1558.8,1.5156]
[1744375640633,14.14223,1559.3,1558.8,7.93068]
[1744375640795,14.14223,1559.3,1558.9,0.793068]
[1744375640997,7.729,1559.3,1558.9,0.793068]
[1744375641210,12.0363954,1559.3,1558.4,1.5829]
[1744375641411,4.0164,1559.2,1558.5,0.06415602]
[1744375642211,8.55145574,1559.0,1558.5,0.06415602]
[1744375642408,8.55145574,1559.0,1558.4,8.04932602]
[1744375642625,7.731,1558.9,1558.4,1.5684]
[1744375642820,7.731,1558.9,1558.4,2.40620984]
[1744375643105,1.0164,1558.8,1558.3,0.3925984]
[1744375643522,4.3073954,1558.7,1558.3,0.3925984]
[1744375643701,4.73334065,1558.6,1558.3,0.3925984]
[1744375644011,7.731,1558.5,1558.0,6.41832]
[1744375644202,20.5643,1558.5,1558.0,6.41832]
[1744375644402,6.41715,1558.4,1558.0,1.283718]
[1744375644611,5.3237954,1558.3,1557.8,1.5271]
[1744375644932,7.731,1558.3,1557.9,6.48277061]
[1744375645103,7.731,1558.3,1557.9,12.83735]
[1744375645300,14.1483,1558.3,1557.8,14.36566]
[1744375645522,7.734,1558.3,1558.1,6.4178]
[1744375645701,4.73334065,1558.4,1558.1,7.05958]
[1744375645908,4.73334065,1558.4,1558.0,6.41842]
[1744375646229,4.73334065,1558.4,1558.0,6.41832]
[1744375646422,11.15039065,1558.4,1557.9,6.96886]
[1744375646626,17.56753065,1558.4,1557.9,6.96886]
[1744375646932,6.41823,1558.1,1557.7,6.41958]
[1744375647110,7.734,1558.0,1557.6,12.8399]
[1744375647298,7.734,1558.0,1557.6,6.41991]
[1744375647501,7.734,1558.0,1557.7,6.41953]
[1744375647699,7.734,1558.0,1557.8,6.41913]
[1744375648521,6.41891,1557.9,1557.5,14.36964]
[1744375648834,7.734,1558.0,1557.6,6.41983]
[1744375649003,7.734,1558.0,1557.7,6.41967]
[1744375649719,7.734,1558.0,1557.7,12.83924]
[1744375650033,7.734,1558.0,1557.8,6.41916]
[1744375650225,7.734,1558.0,1557.8,12.8383]
[1744375650423,7.734,1558.0,1557.7,12.83924]
[1744375650599,7.734,1558.0,1557.8,6.41919]
[1744375650805,7.734,1558.0,1557.9,6.41889]
[1744375651031,7.734,1558.0,1557.8,12.03889953]
[1744375651332,4.73334065,1558.2,1557.6,6.97008]
[1744375651539,4.73334065,1558.2,1558.0,6.41824]
[1744375651840,4.73334065,1558.3,1558.0,0.06417661]
[1744375652016,4.73334065,1558.3,1558.1,6.41791]
[1744375652419,4.73334065,1558.3,1558.1,12.83582]
[1744375652628,4.73334065,1558.3,1558.1,12.83585]
[1744375652834,4.73334065,1558.3,1558.2,6.41766]
[1744375653138,1.0164,1558.6,1558.2,6.41766]
[1744375653442,15.17142,1558.6,1558.2,6.41751]
[1744375653735,6.41652,1558.5,1558.1,6.41784]
[1744375654111,6.41652,1558.5,1558.1,12.83579]
[1744375654315,6.41652,1558.5,1558.1,6.41784]
[1744375654640,6.41652,1558.5,1558.1,12.83576]
[1744375655041,6.41652,1558.5,1558.1,6.41784]
[1744375655239,6.41652,1558.5,1558.1,12.8358]
[1744375655954,21.58777,1558.6,1558.1,12.8358]
[1744375656162,8.7554,1558.6,1558.0,1.6249]
[1744375656312,7.739,1558.6,1558.3,6.41701]
[1744375656517,7.739,1558.6,1558.0,8.04328]
[1744375656852,7.95389,1558.5,1558.0,8.04328]
[1744375657049,6.41697,1558.4,1558.0,8.04328]
[1744375657412,6.41822,1558.1,1557.7,7.95458]
[1744375657657,6.41822,1558.1,1557.7,7.95463]
[1744375657658,14.15822,1558.1,1557.7,7.95463]
[1744375657954,15.72062,1558.1,1557.6,6.42002]
[1744375658161,6.41861,1558.0,1557.6,6.41999]
[1744375658514,6.41861,1558.0,1557.6,12.83998]
[1744375658719,22.13909,1558.1,1557.6,12.83998]
[1744375658965,9.3024,1558.1,1557.8,6.41901]
[1744375659167,9.3024,1558.1,1557.7,6.4196]
[1744375659325,9.3024,1558.1,1557.7,12.8392]
[1744375659524,9.3024,1558.1,1557.8,6.41928]
[1744375659752,9.3024,1558.1,1557.8,6.41918]
[1744375660126,6.41857,1558.0,1557.5,7.857384]
[1744375660445,6.41857,1558.0,1557.6,6.42002]
[1744375661474,6.41857,1558.0,1557.6,12.84002]
[1744375661624,17.934355,1558.1,1557.8,6.41928]
[1744375661625,11.516215,1558.1,1557.8,6.41928]
[1744375661823,17.934315,1558.1,1557.7,6.41933]
[1744375662063,24.352705,1558.1,1557.7,6.41933]
[1744375662384,17.934315,1558.1,1557.7,12.83894]
[1744375663269,9.3024,1558.1,1557.8,6.41919]